[Event "Croatian 1A League 2022"]
[Site "Porec"]
[Date "2022.10.02"]
[Round "9.3"]
[White "Palac, Mladen"]
[Black "Balogh, Csaba"]
[Result "1/2-1/2"]
[WhiteElo "2516"]
[BlackElo "2583"]
[Annotator "TA"]
[PlyCount "32"]
[EventDate "2022.09.24"]
[EventType "team-tourn"]
[EventCountry "CRO"]
[SourceTitle "playchess.com"]
[Source "ChessBase"]
[SourceQuality "1"]
[TimeControl "40/5400+30:1800+30"]

{[%evp 14,15,37,25]} 1. Nf3 {[%emt 0:00:02]} d5 {[%emt 0:00:33]} 2. d4 {[%emt 0:00:07]} Nf6 {[%emt 0:00:14]} 3. c4 {[%emt 0:00:04]} c6 {[%emt 0:00:17]} 4. Nc3 {[%emt 0:00:02]} dxc4 {[%emt 0:00:17]} 5. a4 {[%emt 0:00:01]} Bf5 {[%emt 0:01:26]} 6. Ne5 {[%emt 0:00:12]} Nbd7 $1 {[%emt 0:00:32] 6...Nbd7 scores better than 6...e6.} 7. Nxc4 {[%emt 0:00:07]} Nb6 {[%emt 0:00:25]} 8. Ne5 {[%emt 0:00:36] [#]} {Predecessor:} a5 $146 {D17: Slav Defence: 5 a4 Bf5: Lines with 6 Nh4 and 6 Ne5.} 9. e3 Nbd7 10. Bd3 Bxd3 11. Nxd3 e6 12. O-O Qb6 13. b3 Be7 14. Bb2 O-O 15. Qc2 Rac8 16. Rac1 Rfd8 {1-0 (53) Fedoseev,V (2686)-Matlakov,M (2671) Chess.com INT 2022} 1/2-1/2

[Event "Croatian 1A League 2022"]
[Site "Porec"]
[Date "2022.10.02"]
[Round "9.4"]
[White "Kuljasevic, Davorin"]
[Black "Petkov, Vladimir"]
[Result "0-1"]
[ECO "E15"]
[WhiteElo "2560"]
[BlackElo "2451"]
[Annotator "TA"]
[PlyCount "82"]
[EventDate "2022.09.24"]
[EventType "team-tourn"]
[EventCountry "CRO"]
[SourceTitle "playchess.com"]
[Source "ChessBase"]
[SourceQuality "1"]
[TimeControl "40/5400+30:1800+30"]

{[%evp 21,82,-1,24,-2,0,0,0,0,16,0,4,-10,0,-1,62,0,18,19,31,-7,0,-18,-9,-22,-14,-145,-133,-253,-257,-253,-259,-241,-254,-450,-442,-1143,-1142,-1087,-396,-395,-398,-381,-374,-352,-352,-672,-679,-1345,-1485,-1495,-1337,-1040,-896,-1479,-1158,-1305,-929,-1102,-621,-591,-520,-1693,-1292]} 1. d4 {[%emt 0:00:03]} Nf6 {[%emt 0:00:23]} 2. c4 {[%emt 0:00:08]} e6 {[%emt 0:00:29]} 3. Nf3 {[%emt 0:00:25]} b6 {[%emt 0:01:55]} 4. g3 {[%emt 0:00:26]} Ba6 {[%emt 0:00:35]} 5. b3 {[%emt 0:00:45]} Bb4+ {[%emt 0:01:48]} 6. Bd2 {[%emt 0:00:14]} Be7 {[%emt 0:00:07]} 7. Bg2 {[%emt 0:01:47]} c6 {[%emt 0:00:23]} 8. O-O {[%emt 0:01:41]} d5 {[%emt 0:00:42]} 9. Qc2 {[%emt 0:08:52]} O-O {[%emt 0:00:55]} 10. Rd1 {[%emt 0:01:51]} Nbd7 {[%emt 0:09:32]} 11. a4 {[%emt 0:04:42] The main line 11.a4 scores better than 11.Bf4.} Rc8 {[%emt 0:18:07]} 12. Na3 {[%emt 0:08:04] E15: Queen's Indian: 4 g3 sidelines, 4 g3 Ba6 and 4 g3 Bb7 early deviations.} (12. a5 $5 {[%cal Ra5b6]}) 12... Bb7 {[%emt 0:03:57]} 13. Qb2 {[%emt 0:05:54]} c5 {[%emt 0:07:34]} 14. Rac1 {[%emt 0:09:36] The position is equal.} a6 {[%emt 0:07:58]} 15. Be1 {[%emt 0:04:16]} Ne4 {[%emt 0:11:15]} 16. e3 {[%emt 0:05:39]} f5 {[%emt 0:00:54] [#]} 17. b4 $146 {[%emt 0:16:12]} ({Predecessor:} 17. Nb1 Bf6 18. Nc3 Qe7 19. Qe2 Qf7 20. a5 bxa5 21. cxd5 Nxc3 22. Bxc3 Bxd5 23. Ne5 Bxe5 24. Bxd5 cxd4 25. exd4 {½-½ (25) Schmidt,T (2435)-Krzyzanowski,A (2365) ICCF email 2019}) 17... Bf6 {[%emt 0:06:11]} ({Black should play} 17... cxb4 $11 18. Bxb4 Bxb4 19. Qxb4 a5) 18. Qb3 {[%emt 0:06:30]} (18. bxc5 $14 Ndxc5 19. a5) 18... dxc4 {[%emt 0:02:31]} 19. Nxc4 {[%emt 0:05:57] next dxc5 is good for White.} Bd5 {[%emt 0:02:28]} 20. dxc5 {[%emt 0:00:04]} bxc5 {[%emt 0:00:11]} 21. Qd3 {[%emt 0:00:40] Threatens to win with Nfd2.} Nb6 {[%emt 0:06:59]} 22. Nxb6 {[%emt 0:05:14]} Qxb6 {[%emt 0:00:07]} 23. Qa3 {[%emt 0:04:25] [#] Black continues to play with concentration.} (23. bxc5 $11 {remains equal.} Nxc5 24. Qa3) 23... Qb7 $1 $17 {[%emt 0:02:52] Black is much more active.} 24. Rb1 {[%emt 0:01:34]} (24. Bf1 $17) 24... c4 $19 {[%emt 0:00:40]} 25. b5 {[%emt 0:04:11]} c3 {[%emt 0:02:30]} 26. bxa6 {[%emt 0:00:14]} Qxa6 {[%emt 0:00:48]} 27. Rdc1 {[%emt 0:00:29]} (27. Rxd5 exd5 28. Bf1) 27... Qe2 {[%emt 0:02:21]} 28. Nd4 {[%emt 0:00:53]} (28. Rb5 $142) 28... Bxd4 {[%emt 0:00:34]} 29. exd4 {[%emt 0:00:05]} c2 $2 {[%emt 0:02:38]} (29... f4 {( -> ...fxg3)} 30. gxf4 Rxf4) 30. Rb5 {[%emt 0:00:26]} f4 {[%emt 0:02:23] Inhibits Qe3.} 31. Bf3 {[%emt 0:02:15]} Qc4 {[%emt 0:00:06] Dancing on a razor blade.} 32. Rb4 {[%emt 0:00:10]} Qc6 {[%emt 0:02:04]} 33. Rb5 $2 {[%emt 0:00:42]} (33. Bxe4 Bxe4 34. Rb3) 33... fxg3 {[%emt 0:00:40] Black is clearly winning.} 34. hxg3 {[%emt 0:00:09] [#]} Rxf3 {[%emt 0:01:19][%mdl 512]} 35. Qxf3 {[%emt 0:00:04]} Ng5 {[%emt 0:00:08][%cal Be4g5,Bg5f3,Bf3e1][%mdl 32]} ({Weaker is} 35... Nd6 36. Rxd5 exd5 37. Bb4 $15) 36. Qe3 {[%emt 0:03:15]} Nf3+ {[%emt 0:00:39]} 37. Kg2 {[%emt 0:00:07]} Nxe1+ {[%emt 0:01:14][%mdl 64] Discovered Attack (Double check)} 38. Kh3 {[%emt 0:00:04]} Nf3 {[%emt 0:00:55] White must now prevent ...Qd7.} 39. Rc5 {[%emt 0:00:07]} Qa8 {[%emt 0:01:34] Strongly threatening ...Rxc5.} 40. R1xc2 {[%emt 0:00:00]} Rf8 {[%emt 0:00:00] And now ...e5 would win.} 41. g4 {[%emt 0:05:16]} (41. Rxd5 $142 Qxd5 42. Rc5) 41... Qd8 {[%emt 0:01:39] Weighted Error Value: White=1.03/Black=0.36} 0-1

[Event "Croatian 1A League 2022"]
[Site "Porec"]
[Date "2022.10.02"]
[Round "9.5"]
[White "Zelcic, Robert"]
[Black "Jovanic, Ognjen"]
[Result "1/2-1/2"]
[ECO "C67"]
[WhiteElo "2495"]
[BlackElo "2507"]
[Annotator "TA"]
[PlyCount "67"]
[EventDate "2022.09.24"]
[EventType "team-tourn"]
[EventCountry "CRO"]
[SourceTitle "playchess.com"]
[Source "ChessBase"]
[SourceQuality "1"]
[TimeControl "40/5400+30:1800+30"]

{[%evp 12,67,33,26,33,4,13,12,27,16,32,27,17,19,33,15,15,13,16,4,6,0,0,0,3,3,4,6,10,6,4,10,17,0,0,0,0,0,14,-10,0,0,0,-4,0,0,0,0,0,0,0,0,0,0,0,0,0,0]} 1. e4 {[%emt 0:00:04]} e5 {[%emt 0:00:12]} 2. Nf3 {[%emt 0:00:05]} Nc6 {[%emt 0:00:06]} 3. Bb5 {[%emt 0:00:04]} Nf6 {[%emt 0:00:33][%cal Bg8f6,Bf6e4,Be4d6,Bd6f5,Bf5d4][%mdl 32]} 4. O-O {[%emt 0:00:25]} Nxe4 {[%emt 0:00:14]} 5. Re1 {[%emt 0:00:04]} Nd6 {[%emt 0:00:23]} 6. Nxe5 {[%emt 0:00:05]} Be7 {[%emt 0:00:07]} 7. Bf1 {[%emt 0:00:04]} Nf5 {[%emt 0:00:15] C67: Ruy Lopez: Berlin Defence: 4 0-0 Nxe4.} 8. Bd3 {[%emt 0:13:17]} d5 {[%emt 0:22:18]} 9. Bb5 {[%emt 0:25:16]} Nfd4 {[%emt 0:06:29]} 10. Nxc6 {[%emt 0:00:21]} bxc6 {[%emt 0:02:36]} 11. Ba4 {[%emt 0:00:15]} Bd7 {[%emt 0:05:17]} 12. c3 {[%emt 0:04:18] [#]} Ne6 $146 {[%emt 0:00:08]} ({Predecessor:} 12... Nf5 13. d4 O-O 14. Bc2 Re8 15. Bf4 Bd6 16. Bxd6 Rxe1+ 17. Qxe1 cxd6 18. Nd2 Qb6 19. Bxf5 Bxf5 {0-1 (27) Wakeham,M (1530)-Chambers,D (2187) ICCF email 2017}) 13. d4 {[%emt 0:00:09]} O-O {[%emt 0:00:11] The position is equal.} 14. Nd2 {[%emt 0:00:08]} c5 {[%emt 0:09:01]} 15. Nf3 {[%emt 0:02:17]} cxd4 {[%emt 0:04:54]} 16. cxd4 {[%emt 0:00:09]} Bxa4 {[%emt 0:07:08]} 17. Qxa4 {[%emt 0:00:13]} c5 {[%emt 0:00:15]} 18. Be3 {[%emt 0:02:08]} Qb6 {[%emt 0:04:55]} 19. dxc5 {[%emt 0:08:29]} Bxc5 {[%emt 0:00:08]} 20. Bxc5 {[%emt 0:00:06]} Nxc5 {[%emt 0:00:42]} 21. Qd4 {[%emt 0:02:54]} Rfd8 {[%emt 0:04:38]} 22. Re2 {[%emt 0:18:11]} Ne6 {[%emt 0:00:46]} 23. Qxb6 {[%emt 0:04:53]} axb6 {[%emt 0:00:05]} 24. a3 {[%emt 0:00:05]} b5 {[%emt 0:08:53]} 25. b4 {[%emt 0:00:46]} Rac8 {[%emt 0:01:09]} 26. h4 {[%emt 0:04:47]} d4 {[%emt 0:07:47]} 27. g3 {[%emt 0:06:51]} Rc3 {[%emt 0:01:04]} 28. Kg2 {[%emt 0:00:04]} g6 {[%emt 0:00:40]} 29. Re5 {[%emt 0:01:07]} d3 {[%emt 0:02:08]} 30. Rd1 {[%emt 0:04:15]} Rxa3 {[%emt 0:03:21]} 31. Rxb5 {[%emt 0:00:06]} Nd4 {[%emt 0:02:31]} 32. Nxd4 {[%emt 0:00:06]} Rxd4 {[%emt 0:00:02]} 33. Rd2 {[%emt 0:00:40]} Rb3 {[%emt 0:01:32]} 34. Kf3 {[%emt 0:00:06] An interesting draw.  Weighted Error Value: White=0.03 (flawless) /Black=0.03 (flawless)} 1/2-1/2

[Event "Croatian 1A League 2022"]
[Site "Porec"]
[Date "2022.10.02"]
[Round "9.6"]
[White "Srbis, Jurica"]
[Black "Jankovic, Alojzije"]
[Result "1/2-1/2"]
[ECO "C47"]
[WhiteElo "2442"]
[BlackElo "2548"]
[Annotator "TA"]
[PlyCount "40"]
[EventDate "2022.09.24"]
[EventType "team-tourn"]
[EventCountry "CRO"]
[SourceTitle "playchess.com"]
[Source "ChessBase"]
[SourceQuality "1"]
[TimeControl "40/5400+30:1800+30"]

{[%evp 21,22,0,0]} 1. e4 {[%emt 0:00:01]} e5 {[%emt 0:00:03]} 2. Nf3 {[%emt 0:00:08]} Nc6 {[%emt 0:00:04]} 3. Nc3 {[%emt 0:00:10]} Nf6 {[%emt 0:00:06]} 4. d4 {[%emt 0:00:10]} exd4 {[%emt 0:00:04]} 5. Nxd4 {[%emt 0:00:09]} Bb4 {[%emt 0:00:06]} 6. Nxc6 {[%emt 0:00:07]} bxc6 {[%emt 0:00:05]} 7. Bd3 {[%emt 0:00:04]} d5 {[%emt 0:00:06]} 8. exd5 {[%emt 0:00:04]} cxd5 {[%emt 0:00:03]} 9. O-O {[%emt 0:00:06]} O-O {[%emt 0:00:05]} 10. Bg5 {[%emt 0:00:06]} c6 {[%emt 0:00:06]} 11. Qf3 {[%emt 0:00:10]} Be7 {[%emt 0:00:38] [#] 11...h6 is the recent fashion.} {Predecessor:} 12. h3 $146 {C47: Scotch Four Knights and Four Knights with 4 g3.} h6 13. Bf4 Bd6 14. Rfe1 Bxf4 15. Qxf4 Be6 16. Na4 Qb8 17. Qd4 Nd7 18. b4 a5 19. a3 axb4 20. axb4 Qd6 {0-1 (64) Hovhannisyan,R (2642)-Postny,E (2600) Chess.com INT 2020} 1/2-1/2

[Event "Croatian 1A League 2022"]
[Site "Porec"]
[Date "2022.10.02"]
[Round "9.7"]
[White "Kaczur, Florian"]
[Black "Kadric, Denis"]
[Result "0-1"]
[ECO "B30"]
[WhiteElo "2483"]
[BlackElo "2561"]
[Annotator "TA"]
[PlyCount "104"]
[EventDate "2022.09.24"]
[EventType "team-tourn"]
[EventCountry "CRO"]
[SourceTitle "playchess.com"]
[Source "ChessBase"]
[SourceQuality "1"]
[TimeControl "40/5400+30:1800+30"]

{[%evp 9,104,26,26,28,34,30,33,18,17,8,0,0,2,0,0,-33,-33,-43,-24,-35,-29,-33,-36,-112,-112,-120,-123,-255,-243,-254,-257,-245,-258,-261,-262,-257,-252,-435,-443,-617,-425,-422,-414,-400,-368,-467,-291,-291,-293,-303,-328,-299,-304,-310,-323,-423,-447,-473,-464,-483,-478,-544,-547,-570,-459,-481,-481,-448,-444,-443,-435,-421,-415,-461,-442,-673,-429,-682,-677,-909,-909,-893,-880,-820,-697,-662,-618,-7066,-4841,-12840,-12841,-12845,-12846,-12846,-12847,-12850,-12850]} 1. e4 {[%emt 0:00:03]} c5 {[%emt 0:00:04]} 2. Nf3 {[%emt 0:00:10]} Nc6 {[%emt 0:00:02]} 3. Nc3 {[%emt 0:01:07]} e5 {[%emt 0:02:04]} 4. Bc4 {[%emt 0:00:54]} g6 {[%emt 0:00:03]} 5. Nd5 {[%emt 0:03:36]} Bg7 {[%emt 0:01:29]} 6. d3 {[%emt 0:07:28] B30: Sicilian: 2...Nc6 3 Bb5, lines without ...g6.} h6 {[%emt 0:00:36]} 7. a3 {[%emt 0:10:13]} Nge7 {[%emt 0:01:14]} 8. Be3 {[%emt 0:05:32] White is slightly better.} d6 {[%emt 0:02:01] [#]} 9. c3 $146 {[%emt 0:04:21]} ({Predecessor:} 9. h3 Nxd5 10. Bxd5 Ne7 11. Ba2 O-O 12. Qd2 Kh7 13. g4 f5 14. Qe2 f4 15. Bd2 {0-1 (48) Prieto Gonzalez,C (1505)-Villodre Miranda,J (1594) Madrid 2019}) 9... Nxd5 {[%emt 0:07:11]} 10. Bxd5 {[%emt 0:00:21]} Ne7 {[%emt 0:00:02]} 11. Bc4 {[%emt 0:05:56]} O-O {[%emt 0:05:01]} 12. Qb3 {[%emt 0:13:38]} b6 {[%emt 0:14:57]} 13. O-O {[%emt 0:09:40]} Bb7 {[%emt 0:02:18]} 14. Rfe1 {[%emt 0:04:48]} Rb8 {[%emt 0:09:42][%cal Ob6b5]} 15. Qc2 {[%emt 0:05:00]} Kh7 {[%emt 0:04:14]} 16. d4 {[%emt 0:05:40]} (16. Bd2 $15) 16... cxd4 $17 {[%emt 0:03:46]} 17. cxd4 {[%emt 0:00:07]} Rc8 {[%emt 0:00:01]} 18. Qd3 {[%emt 0:03:22] [#] This costs White the game.} (18. Qb3 $17) 18... d5 $1 $19 {[%emt 0:07:08]} 19. Bxd5 {[%emt 0:03:24]} Nxd5 {[%emt 0:00:03]} 20. exd5 {[%emt 0:00:06]} Qxd5 {[%emt 0:00:02]} 21. Qd1 {[%emt 0:05:22] [#]} e4 {[%emt 0:01:18]} 22. Nd2 {[%emt 0:01:34]} f5 {[%emt 0:00:08]} ({Worse is} 22... Bxd4 23. Bxd4 Qxd4 24. Nxe4 Qxb2 25. Rb1 $17) 23. g3 {[%emt 0:02:47]} (23. f3) 23... g5 {[%emt 0:00:19]} 24. f4 {[%emt 0:00:45]} gxf4 {[%emt 0:00:59]} 25. gxf4 {[%emt 0:00:14]} Bxd4 {[%emt 0:00:10]} 26. Nf1 {[%emt 0:00:19]} Bxb2 {[%emt 0:00:26]} 27. Ng3 {[%emt 0:01:24]} Qxd1 {[%emt 0:03:06]} 28. Raxd1 {[%emt 0:00:06]} Rc7 {[%emt 0:00:31] Against Rd7+} 29. a4 {[%emt 0:00:12]} Bc6 {[%emt 0:04:11]} 30. Rb1 {[%emt 0:01:39]} Bc3 {[%emt 0:00:53]} 31. Rec1 {[%emt 0:00:06]} Bxa4 {[%emt 0:00:43]} 32. Ra1 {[%emt 0:01:00]} b5 {[%emt 0:01:08]} 33. Ra3 {[%emt 0:00:06]} Ba5 {[%emt 0:00:14] Hoping for ...Rxc1+.} 34. Rxc7+ {[%emt 0:00:07]} Bxc7 {[%emt 0:00:02] This bishop pair is nice.} 35. Rc3 {[%emt 0:00:08]} Rf7 {[%emt 0:02:26]} 36. Rc6 {[%emt 0:02:19]} Bd8 {[%emt 0:06:54] aiming for ...b4.} 37. Rd6 {[%emt 0:01:38]} Bh4 {[%emt 0:03:00]} 38. Ra6 {[%emt 0:00:58]} Bd1 {[%emt 0:10:48] Threatens to win with ...b4.} 39. Bxa7 {[%emt 0:00:34]} Bg4 {[%emt 0:00:04] And now ...b4 would win.} 40. Bf2 {[%emt 0:00:00]} Bd8 {[%emt 0:00:00]} 41. Ra8 {[%emt 0:14:26]} Rd7 {[%emt 0:01:27] Black is clearly winning.} 42. Be3 {[%emt 0:00:59]} (42. h3 $142 Bxh3 43. Rb8) 42... h5 {[%emt 0:04:35] ...b4 is the strong threat.} 43. h3 {[%emt 0:04:54]} (43. Kf2 $142) 43... Bxh3 {[%emt 0:00:09]} 44. Nxh5 {[%emt 0:00:50]} Rd3 {[%emt 0:01:25] Strongly threatening ...Kg6.} 45. Kh2 {[%emt 0:03:05]} Bg4 {[%emt 0:01:23]} 46. Ng3 {[%emt 0:00:10]} Bh4 {[%emt 0:01:09]} 47. Ra7+ {[%emt 0:00:10]} Kg6 {[%emt 0:00:01]} 48. Bf2 {[%emt 0:00:26]} e3 {[%emt 0:00:58]} 49. Be1 {[%emt 0:00:21] [#]} Rd2+ $1 {[%emt 0:00:48]} 50. Bxd2 {[%emt 0:00:42]} (50. Kg1 Rd1) 50... Bxg3+ {[%emt 0:00:15]} 51. Kxg3 {[%emt 0:00:15]} exd2 {[%emt 0:00:02]} 52. Rd7 {[%emt 0:00:22]} d1=Q {[%emt 0:00:06] Weighted Error Value: White=0.47/Black=0.19 (very precise)} 0-1

[Event "Croatian 1A League 2022"]
[Site "Porec"]
[Date "2022.10.02"]
[Round "9.8"]
[White "Saric, Ibro"]
[Black "Janzelj, Tim"]
[Result "0-1"]
[ECO "A87"]
[WhiteElo "2542"]
[BlackElo "2456"]
[Annotator "TA"]
[PlyCount "94"]
[EventDate "2022.09.24"]
[EventType "team-tourn"]
[EventCountry "CRO"]
[SourceTitle "playchess.com"]
[Source "ChessBase"]
[SourceQuality "1"]
[TimeControl "40/5400+30:1800+30"]

{[%evp 21,94,10,25,0,0,-17,-15,-29,-41,-43,-25,-75,-19,-29,0,-19,-23,-34,-50,-45,-42,-40,-44,-56,-31,-68,-45,-83,-70,-58,-25,-79,-72,-116,-112,-205,-160,-152,-205,-199,-74,-75,-61,-68,-47,-50,15,14,8,-243,-162,-269,0,0,0,0,0,0,0,-256,-263,-240,-210,-225,-224,-741,-299,-710,-712,-793,-700,-700,-693,-610,-578]} 1. d4 {[%emt 0:00:05]} f5 {[%emt 0:00:13]} 2. g3 {[%emt 0:01:48]} Nf6 {[%emt 0:00:16]} 3. Bg2 {[%emt 0:00:08]} g6 {[%emt 0:00:09]} 4. Nf3 {[%emt 0:02:52]} Bg7 {[%emt 0:00:12]} 5. O-O {[%emt 0:00:18]} O-O {[%emt 0:00:08]} 6. c4 {[%emt 0:00:18]} d6 {[%emt 0:00:11]} 7. Nc3 {[%emt 0:00:17]} Qe8 {[%emt 0:00:13]} 8. d5 {[%emt 0:01:05]} Na6 {[%emt 0:00:17]} 9. Nd4 {[%emt 0:04:16]} Bd7 {[%emt 0:00:42]} 10. Rb1 {[%emt 0:05:50]} c6 {[%emt 0:00:54]} 11. b3 {[%emt 0:07:43]} Nc7 {[%emt 0:04:42]} 12. Re1 {[%emt 0:07:58] [#] A87: Dutch Defence: Leningrad System: 5 Nf3.} cxd5 $146 {[%emt 0:17:00]} ({Predecessor:} 12... c5 13. Ne6 Nxe6 14. dxe6 Bxe6 15. Bxb7 Rb8 16. Bg2 a5 17. Bd2 Qd8 18. Qc2 Bd7 19. a4 Qb6 {½-½ (54) Garcia Vicente,N (2235)-Van Parreren,H (2185) Delden 1993}) 13. cxd5 {[%emt 0:27:02]} Qf7 {[%emt 0:00:28]} 14. Ne6 {[%emt 0:08:27] [#] The position is equal.} Nfxd5 {[%emt 0:14:18]} 15. Nxd5 {[%emt 0:00:28]} (15. Nxf8 $2 Nxc3 16. Qc2 Rxf8 $19) 15... Nxe6 {[%emt 0:00:21]} 16. Be3 {[%emt 0:01:24]} (16. b4 $11) 16... Rfc8 {[%emt 0:11:51]} (16... g5 $17 17. f4 gxf4 18. Nxf4 Nxf4 19. Bxf4 Bc6) 17. b4 $11 {[%emt 0:05:43]} Nc7 {[%emt 0:19:34]} 18. Bg5 {[%emt 0:01:43]} Bf8 {[%emt 0:01:03]} 19. Nxe7+ {[%emt 0:01:37]} Bxe7 {[%emt 0:00:17]} 20. Bxe7 {[%emt 0:00:06]} Qxe7 {[%emt 0:00:14]} 21. Bxb7 {[%emt 0:00:07]} Rab8 {[%emt 0:03:47]} 22. Bxc8 {[%emt 0:00:39]} Bxc8 {[%emt 0:00:01]} 23. b5 {[%emt 0:02:01]} Ne6 $1 {[%emt 0:00:52]} (23... Rxb5 $2 24. Rxb5 Nxb5 25. Qd5+ Be6 26. Qxb5 $18) (23... Nxb5 $2 24. Qd3 $18 (24. a4 Nc3 $14)) 24. Qb3 {[%emt 0:03:51]} Bb7 {[%emt 0:02:01]} 25. Red1 {[%emt 0:01:46]} h5 {[%emt 0:00:42]} (25... f4 $5 {[%cal Rb8f8]} 26. Qd3 d5 $17) 26. Qe3 {[%emt 0:02:30]} (26. Qb4 $11) 26... Rf8 $17 {[%emt 0:04:41]} 27. f3 {[%emt 0:04:37]} f4 $1 {[%emt 0:02:59]} 28. Qd3 {[%emt 0:01:10]} (28. gxf4 $17 Rxf4 29. b6 (29. Qxa7 $2 Nd4 $19)) 28... fxg3 $1 $19 {[%emt 0:00:23]} 29. hxg3 {[%emt 0:04:42]} Qg5 {[%emt 0:00:28]} 30. Kf2 {[%emt 0:00:48]} Nc5 {[%emt 0:02:34]} (30... h4 $19 {has better winning chances.} 31. Qxd6 Qf6) 31. Qc4+ $17 {[%emt 0:00:05]} Kh7 {[%emt 0:00:25] Black is more active.} 32. Rd4 {[%emt 0:00:43] Prevents Ne4+.} Qe5 {[%emt 0:08:22] Threatens to win with ...Ne6.} 33. Rf4 {[%emt 0:01:18]} Re8 {[%emt 0:01:51]} (33... Bd5 $15 34. Qd4 Qxd4+ 35. Rxd4 Bxa2) 34. Rf7+ $1 $11 {[%emt 0:00:53][%mdl 1024] White has compensation.} Kh8 {[%emt 0:00:07]} 35. Qc2 $2 {[%emt 0:01:16][%mdl 8192]} (35. Rd1 $1 $11 {and White stays safe.}) 35... Bd5 {[%emt 0:02:59]} 36. Rxa7 {[%emt 0:00:41]} (36. Rf4 $142) 36... Qd4+ $2 {[%emt 0:02:05]} (36... Re6 37. Qb2 $18) ({Black should try} 36... Qe3+ $1 $19 37. Kg2 (37. Kf1 $2 Bxf3 38. exf3 Qxf3+ 39. Kg1 Re2 $19) 37... Ne4 $1 {[%mdl 512]} 38. Qb2+ Re5) 37. Kf1 {[%emt 0:01:37]} Ne4 {[%emt 0:01:00][%mdl 64] Discovered Attack. The board is on fire.} 38. fxe4 {[%emt 0:00:56]} Rf8+ {[%emt 0:00:18]} 39. Ke1 {[%emt 0:00:01]} Qxa7 {[%emt 0:00:24]} 40. Qc3+ {[%emt 0:00:00][%mdl 8192]} (40. exd5 $2 Qa5+ 41. Qd2 {[#]} Rf1+ $3 {[%mdl 512]} 42. Kxf1 Qxd2 $19) (40. Qb2+ $11 Kh7 41. exd5 Qf2+ 42. Kd1) 40... Kg8 $19 {[%emt 0:00:00]} 41. b6 {[%emt 0:03:36]} Qf7 {[%emt 0:03:13]} ({Don't play} 41... Qxa2 42. Ra1 Qc4 43. Qxc4 Bxc4 44. b7 $18) 42. Rb4 {[%emt 0:01:19]} Bb7 {[%emt 0:01:51] And now ...Qf1+ would win.} (42... Bxa2 43. b7 Qf1+ 44. Kd2 $18) 43. a4 $2 {[%emt 0:00:46]} (43. Qb3) 43... Qf1+ {[%emt 0:03:21]} ({Avoid the trap} 43... h4 $2 44. gxh4 Qf1+ 45. Kd2 $19) 44. Kd2 {[%emt 0:01:55]} Ba6 {[%emt 0:00:08] Black is clearly winning.} 45. Qb3+ {[%emt 0:02:02]} d5 {[%emt 0:01:46]} 46. Qd1 {[%emt 0:05:02]} Qf2 {[%emt 0:00:06] ...Rf3 is the strong threat.} 47. b7 {[%emt 0:01:05] [#]} Bxb7 $1 {[%emt 0:00:45][%mdl 512] Weighted Error Value: White=0.51/Black=0.26 (precise)} 0-1